[Event "Polugaevsky Memorial 2019"]
[Site "Samara"]
[Date "2019.07.12"]
[Round "3.2"]
[White "Ovetchkin, Roman"]
[Black "Mnatsakanian, Arsen"]
[Result "1/2-1/2"]
[ECO "B06"]
[WhiteElo "2538"]
[BlackElo "2231"]
[Annotator "ChessBase"]
[PlyCount "138"]
[EventDate "2019.07.10"]
[EventType "swiss"]
[EventCountry "RUS"]
[SourceTitle "playchess.com"]
[Source "ChessBase"]
[SourceQuality "1"]
[TimeControl "5400+30"]

1. e4 {[%emt 0:00:00]} g6 {[%emt 0:06:36]} 2. d4 {[%emt 0:00:00]} Bg7 {[%emt 0:00:05]} 3. Nc3 {[%emt 0:00:23]} d6 {[%emt 0:02:30]} 4. Be3 {[%emt 0:00:23]} Nf6 {[%emt 0:00:17]} 5. Qd2 {[%emt 0:00:35]} c6 {[%emt 0:02:25]} 6. Nf3 {[%emt 0:04:16]} Qc7 {[%emt 0:14:32]} 7. h3 {[%emt 0:02:46]} Nbd7 {[%emt 0:00:17]} 8. Bd3 {[%emt 0:00:57]} a5 {[%emt 0:00:46]} 9. O-O {[%emt 0:02:54]} O-O {[%emt 0:02:18]} 10. Ne2 {[%emt 0:18:02]} e5 {[%emt 0:01:36]} 11. dxe5 {[%emt 0:07:03]} dxe5 {[%emt 0:00:15]} 12. a4 {[%emt 0:02:30]} Rd8 {[%emt 0:01:46]} 13. Ng3 {[%emt 0:05:52]} Nf8 {[%emt 0:17:40]} 14. Qc3 {[%emt 0:01:09]} Re8 {[%emt 0:00:03]} 15. Rad1 {[%emt 0:05:12]} b6 {[%emt 0:06:47]} 16. Bc4 {[%emt 0:11:14]} Be6 {[%emt 0:03:05]} 17. Nd2 {[%emt 0:11:10]} N6d7 {[%emt 0:00:35]} 18. Bb3 {[%emt 0:05:41]} Bxb3 {[%emt 0:03:08]} 19. Nxb3 {[%emt 0:00:30]} Ne6 {[%emt 0:00:14]} 20. Qc4 {[%emt 0:00:29]} Bf8 {[%emt 0:01:22]} 21. Rd2 {[%emt 0:00:52]} Ndc5 {[%emt 0:01:25]} 22. Rfd1 {[%emt 0:06:42]} Red8 {[%emt 0:00:20]} 23. Nxc5 {[%emt 0:07:06]} Bxc5 {[%emt 0:00:08]} 24. Bxc5 {[%emt 0:00:06]} Nxc5 {[%emt 0:00:06]} 25. b3 {[%emt 0:00:18]} Rxd2 {[%emt 0:00:07]} 26. Rxd2 {[%emt 0:00:01]} Rd8 {[%emt 0:00:40]} 27. Nf1 {[%emt 0:00:43]} Rd6 {[%emt 0:06:31]} 28. f3 {[%emt 0:02:30]} Ne6 {[%emt 0:01:29]} 29. Qc3 {[%emt 0:01:28]} Rxd2 {[%emt 0:01:11]} 30. Nxd2 {[%emt 0:00:40]} Qd6 {[%emt 0:00:47]} 31. Kf2 {[%emt 0:01:11]} b5 {[%emt 0:00:50]} 32. g3 {[%emt 0:00:21]} Nd4 {[%emt 0:01:47]} 33. h4 {[%emt 0:00:35]} h5 {[%emt 0:00:08]} 34. Nf1 {[%emt 0:01:03]} Qa3 {[%emt 0:01:11]} 35. axb5 {[%emt 0:01:41]} cxb5 {[%emt 0:00:05]} 36. Qc8+ {[%emt 0:00:07]} Qf8 {[%emt 0:00:06]} 37. Qc7 {[%emt 0:01:04]} a4 {[%emt 0:01:28]} 38. bxa4 {[%emt 0:00:43]} bxa4 {[%emt 0:00:08]} 39. Qxe5 {[%emt 0:00:03]} Nxc2 {[%emt 0:00:57]} 40. Qc3 {[%emt 0:00:00]} Nb4 {[%emt 0:00:00]} 41. Ne3 {[%emt 0:00:00]} Qd6 {[%emt 0:00:00]} 42. f4 {[%emt 0:00:00]} a3 {[%emt 0:00:00]} 43. e5 {[%emt 0:00:00]} Qb6 {[%emt 0:00:00]} 44. Qxa3 {[%emt 0:00:00]} Nc2 {[%emt 0:00:00]} 45. Qc3 {[%emt 0:00:00]} Nxe3 {[%emt 0:00:00]} 46. Qxe3 {[%emt 0:00:00]} Qb2+ {[%emt 0:00:00]} 47. Kf3 {[%emt 0:00:00]} Qb7+ {[%emt 0:00:00]} 48. Qe4 {[%emt 0:00:00]} Qb3+ {[%emt 0:00:00]} 49. Kg2 {[%emt 0:00:00]} Qb2+ {[%emt 0:00:00]} 50. Kh3 {[%emt 0:00:00]} Qf2 {[%emt 0:00:00]} 51. Qg2 {[%emt 0:00:00]} Qe3 {[%emt 0:00:00]} 52. Qf1 {[%emt 0:00:00]} Kg7 {[%emt 0:00:00]} 53. Kg2 {[%emt 0:00:00]} Qe4+ {[%emt 0:00:00]} 54. Qf3 {[%emt 0:00:00]} Qe1 {[%emt 0:00:00]} 55. Qd3 {[%emt 0:00:00]} Kh7 {[%emt 0:00:00]} 56. Kf3 {[%emt 0:00:00]} Kg7 {[%emt 0:00:00]} 57. Qe3 {[%emt 0:00:00]} Qf1+ {[%emt 0:00:00]} 58. Ke4 {[%emt 0:00:00]} Qh1+ {[%emt 0:00:00]} 59. Kd4 {[%emt 0:00:00]} Qd1+ {[%emt 0:00:00]} 60. Kc5 {[%emt 0:00:00]} Qd7 {[%emt 0:00:00]} 61. Qc3 {[%emt 0:00:00]} Qa7+ {[%emt 0:00:00]} 62. Kd6 {[%emt 0:00:06]} Qb6+ {[%emt 0:00:00]} 63. Qc6 {[%emt 0:02:31]} Qd8+ {[%emt 0:00:00]} 64. Kc5 {[%emt 0:03:48]} Qa5+ {[%emt 0:00:00]} 65. Kc4 {[%emt 0:00:12]} Qa2+ {[%emt 0:00:00]} 66. Kd3 {[%emt 0:01:03]} Qf2 {[%emt 0:00:00]} 67. Qf6+ {[%emt 0:00:31]} Kg8 {[%emt 0:00:00]} 68. e6 {[%emt 0:01:37]} Qf1+ {[%emt 0:00:00]} 69. Kd2 {[%emt 0:00:44]} Qf2+ {[%emt 0:00:00]} 1/2-1/2

[Event "Polugaevsky Memorial 2019"]
[Site "Samara"]
[Date "2019.07.12"]
[Round "3.3"]
[White "Skatchkov, Valery"]
[Black "Gabrielian, Artur"]
[Result "1/2-1/2"]
[ECO "D70"]
[WhiteElo "2314"]
[BlackElo "2458"]
[Annotator "ChessBase"]
[PlyCount "64"]
[EventDate "2019.07.10"]
[EventType "swiss"]
[EventCountry "RUS"]
[SourceTitle "playchess.com"]
[Source "ChessBase"]
[SourceQuality "1"]
[TimeControl "5400+30"]

1. d4 {[%emt 0:00:00]} Nf6 {[%emt 0:00:47]} 2. c4 {[%emt 0:00:00]} g6 {[%emt 0:01:04]} 3. Nf3 {[%emt 0:00:00]} Bg7 {[%emt 0:00:11]} 4. g3 {[%emt 0:00:00]} O-O {[%emt 0:00:21]} 5. Bg2 {[%emt 0:00:06]} c6 {[%emt 0:00:11]} 6. O-O {[%emt 0:00:14]} d5 {[%emt 0:00:03]} 7. Qb3 {[%emt 0:01:14]} Qb6 {[%emt 0:00:11]} 8. Nc3 {[%emt 0:01:02]} Rd8 {[%emt 0:00:17]} 9. Rd1 {[%emt 0:06:06]} Bf5 {[%emt 0:08:01]} 10. Ne1 {[%emt 0:02:34]} dxc4 {[%emt 0:02:43]} 11. Qxc4 {[%emt 0:00:17]} Na6 {[%emt 0:00:08]} 12. e4 {[%emt 0:06:58]} Bg4 {[%emt 0:12:07]} 13. Nf3 {[%emt 0:03:01]} Qb4 {[%emt 0:08:42]} 14. Qb3 {[%emt 0:12:29]} e5 {[%emt 0:17:13]} 15. dxe5 {[%emt 0:11:41]} Nxe4 {[%emt 0:04:38]} 16. Be3 {[%emt 0:00:27]} Qxb3 {[%emt 0:09:35]} 17. axb3 {[%emt 0:00:14]} Nxc3 {[%emt 0:04:42]} 18. bxc3 {[%emt 0:10:49]} Bxf3 {[%emt 0:01:37]} 19. Bxf3 {[%emt 0:00:12]} Bxe5 {[%emt 0:00:05]} 20. Rxd8+ {[%emt 0:00:15]} Rxd8 {[%emt 0:00:03]} 21. Bxc6 {[%emt 0:00:48]} Bxc3 {[%emt 0:02:33]} 22. Ra4 {[%emt 0:00:26]} bxc6 {[%emt 0:01:12]} 23. Rxa6 {[%emt 0:00:04]} Bd4 {[%emt 0:00:34]} 24. Bxd4 {[%emt 0:00:05]} Rxd4 {[%emt 0:00:04]} 25. Rxc6 {[%emt 0:00:36]} Rb4 {[%emt 0:00:08]} 26. Rc7 {[%emt 0:00:07]} Rxb3 {[%emt 0:00:04]} 27. Rxa7 {[%emt 0:00:04]} h5 {[%emt 0:00:38]} 28. h4 {[%emt 0:00:00]} Rc3 {[%emt 0:00:00]} 29. Kg2 {[%emt 0:00:00]} Rb3 {[%emt 0:00:00]} 30. Kg1 {[%emt 0:00:00]} Rc3 {[%emt 0:00:00]} 31. Kg2 {[%emt 0:00:00]} Rb3 {[%emt 0:00:00]} 32. Kg1 {[%emt 0:00:00]} Rc3 {[%emt 0:00:00]} 1/2-1/2

[Event "Polugaevsky Memorial 2019"]
[Site "Samara"]
[Date "2019.07.12"]
[Round "3.4"]
[White "Rodchenkov, Vitaly"]
[Black "Gaifullin, Artur"]
[Result "1/2-1/2"]
[ECO "D35"]
[WhiteElo "2302"]
[BlackElo "2453"]
[Annotator "ChessBase"]
[PlyCount "85"]
[EventDate "2019.07.10"]
[EventType "swiss"]
[EventCountry "RUS"]
[SourceTitle "playchess.com"]
[Source "ChessBase"]
[SourceQuality "1"]
[TimeControl "5400+30"]

1. c4 {[%emt 0:00:02]} e6 {[%emt 0:00:00]} 2. Nc3 {[%emt 0:00:17]} d5 {[%emt 0:00:00]} 3. d4 {[%emt 0:01:42]} Nf6 {[%emt 0:00:00]} 4. cxd5 {[%emt 0:03:53]} exd5 {[%emt 0:00:00]} 5. Bg5 {[%emt 0:00:46]} Be7 {[%emt 0:00:09]} 6. e3 {[%emt 0:00:37]} c6 {[%emt 0:00:07]} 7. Bd3 {[%emt 0:01:32]} Nbd7 {[%emt 0:00:09]} 8. Bf4 {[%emt 0:07:56]} O-O {[%emt 0:00:27]} 9. h3 {[%emt 0:00:08]} Re8 {[%emt 0:00:07]} 10. Qc2 {[%emt 0:01:17]} Nf8 {[%emt 0:00:08]} 11. Nge2 {[%emt 0:01:19]} Ng6 {[%emt 0:02:08]} 12. Bh2 {[%emt 0:02:32]} Nh4 {[%emt 0:00:34]} 13. Bg3 {[%emt 0:04:56]} Ne4 {[%emt 0:02:58]} 14. Bxh4 {[%emt 0:16:08]} Bxh4 {[%emt 0:00:11]} 15. g3 {[%emt 0:03:02]} Bf6 {[%emt 0:06:22]} 16. Nxe4 {[%emt 0:16:09]} dxe4 {[%emt 0:00:05]} 17. Bxe4 {[%emt 0:00:51]} Qa5+ {[%emt 0:00:23]} 18. Qc3 {[%emt 0:02:26]} Qxc3+ {[%emt 0:05:35]} 19. Nxc3 {[%emt 0:00:07]} Bxd4 {[%emt 0:00:09]} 20. exd4 {[%emt 0:00:27]} f5 {[%emt 0:00:04]} 21. f3 {[%emt 0:11:16]} fxe4 {[%emt 0:00:06]} 22. fxe4 {[%emt 0:00:47]} Bf5 {[%emt 0:00:15]} 23. O-O-O {[%emt 0:01:27]} Bxe4 {[%emt 0:00:06]} 24. Nxe4 {[%emt 0:00:06]} Rxe4 {[%emt 0:00:04]} 25. Rhe1 {[%emt 0:00:55]} Rae8 {[%emt 0:00:45]} 26. Rxe4 {[%emt 0:00:32]} Rxe4 {[%emt 0:00:01]} 27. Kc2 {[%emt 0:01:15]} Kf7 {[%emt 0:00:53]} 28. Kd3 {[%emt 0:00:42]} Re6 {[%emt 0:00:08]} 29. Rf1+ {[%emt 0:01:57]} Ke7 {[%emt 0:00:06]} 30. Rf3 {[%emt 0:00:50]} Rg6 {[%emt 0:00:28]} 31. Re3+ {[%emt 0:02:02]} Kd6 {[%emt 0:00:15]} 32. Rf3 {[%emt 0:00:43]} h5 {[%emt 0:00:38]} 33. Re3 {[%emt 0:10:57]} Rg5 {[%emt 0:00:25]} 34. Rf3 {[%emt 0:02:57]} g6 {[%emt 0:01:53]} 35. Ke4 {[%emt 0:02:12]} Ke6 {[%emt 0:02:52]} 36. Rb3 {[%emt 0:00:41]} b6 {[%emt 0:00:41]} 37. Rc3 {[%emt 0:00:45]} Kd6 {[%emt 0:00:47]} 38. Rf3 {[%emt 0:00:48]} Ke6 {[%emt 0:00:42]} 39. Rc3 {[%emt 0:00:08]} Kd7 {[%emt 0:00:10]} 40. Ra3 {[%emt 0:00:00]} a5 {[%emt 0:00:00]} 41. Rf3 {[%emt 0:00:00]} Rb5 {[%emt 0:00:00]} 42. b3 {[%emt 0:00:00]} Ke6 {[%emt 0:00:00]} 43. Rc3 {[%emt 0:00:00] Ke5+} 1/2-1/2

[Event "Polugaevsky Memorial 2019"]
[Site "Samara"]
[Date "2019.07.12"]
[Round "3.5"]
[White "Kopylov, Alexander A."]
[Black "Yuferev, Oleg"]
[Result "1-0"]
[ECO "A01"]
[WhiteElo "2410"]
[BlackElo "2195"]
[Annotator "ChessBase"]
[PlyCount "77"]
[EventDate "2019.07.10"]
[EventType "swiss"]
[EventCountry "RUS"]
[SourceTitle "playchess.com"]
[Source "ChessBase"]
[SourceQuality "1"]
[TimeControl "5400+30"]

1. b3 {[%emt 0:00:00]} c5 {[%emt 0:00:00]} 2. Bb2 {[%emt 0:00:00]} b6 {[%emt 0:00:11]} 3. Nf3 {[%emt 0:00:54]} Bb7 {[%emt 0:00:40]} 4. g3 {[%emt 0:00:12]} Nf6 {[%emt 0:00:19]} 5. Bg2 {[%emt 0:00:08]} e6 {[%emt 0:00:35]} 6. O-O {[%emt 0:00:17]} Be7 {[%emt 0:00:07]} 7. e3 {[%emt 0:13:40]} O-O {[%emt 0:00:17]} 8. c4 {[%emt 0:00:54]} d6 {[%emt 0:00:50]} 9. Qc2 {[%emt 0:06:44]} Nbd7 {[%emt 0:01:31]} 10. Nc3 {[%emt 0:01:59]} Rc8 {[%emt 0:00:52]} 11. Rad1 {[%emt 0:02:02]} Qc7 {[%emt 0:00:18]} 12. d3 {[%emt 0:06:35]} a6 {[%emt 0:03:35]} 13. Qe2 {[%emt 0:04:15]} Rfe8 {[%emt 0:00:47]} 14. Ne1 {[%emt 0:04:00]} Bxg2 {[%emt 0:01:14]} 15. Nxg2 {[%emt 0:00:11]} Qb7 {[%emt 0:00:53]} 16. f4 {[%emt 0:00:29]} b5 {[%emt 0:06:53]} 17. g4 {[%emt 0:05:20]} b4 {[%emt 0:00:24]} 18. Na4 {[%emt 0:04:28]} Nb8 {[%emt 0:06:49]} 19. f5 {[%emt 0:32:23]} e5 {[%emt 0:08:37]} 20. g5 {[%emt 0:02:25]} Nfd7 {[%emt 0:00:09]} 21. Qg4 {[%emt 0:02:10]} d5 {[%emt 0:07:09]} 22. f6 {[%emt 0:02:30]} Bf8 {[%emt 0:00:21]} 23. fxg7 {[%emt 0:00:45]} Bxg7 {[%emt 0:00:07]} 24. Qf3 {[%emt 0:00:12]} f6 {[%emt 0:03:10]} 25. cxd5 {[%emt 0:03:24]} fxg5 {[%emt 0:00:20]} 26. Qf7+ {[%emt 0:00:12]} Kh8 {[%emt 0:00:06]} 27. e4 {[%emt 0:00:10]} Rg8 {[%emt 0:03:59]} 28. Ne3 {[%emt 0:01:11]} Rcf8 {[%emt 0:00:48]} 29. Qe7 {[%emt 0:00:16]} Re8 {[%emt 0:02:12]} 30. Qf7 {[%emt 0:01:01]} Ref8 {[%emt 0:00:06]} 31. Qe6 {[%emt 0:01:22]} Re8 {[%emt 0:01:28]} 32. Qh3 {[%emt 0:00:27]} Nf6 {[%emt 0:02:37]} 33. Nxc5 {[%emt 0:03:09]} Qa7 {[%emt 0:00:27]} 34. Ne6 {[%emt 0:00:15]} g4 {[%emt 0:00:18]} 35. Qg3 {[%emt 0:00:12]} Nh5 {[%emt 0:01:45]} 36. Qe1 {[%emt 0:00:10]} Nd7 {[%emt 0:00:44]} 37. Kh1 {[%emt 0:02:25]} Nf8 {[%emt 0:05:18]} 38. Nxg7 {[%emt 0:00:15]} Qxg7 {[%emt 0:00:45]} 39. Rf5 {[%emt 0:00:45]} 1-0

[Event "Polugaevsky Memorial 2019"]
[Site "Samara"]
[Date "2019.07.12"]
[Round "3.6"]
[White "Karpeshov, Oleg"]
[Black "Shapiro, David"]
[Result "1/2-1/2"]
[ECO "C42"]
[WhiteElo "2286"]
[BlackElo "2410"]
[Annotator "ChessBase"]
[PlyCount "81"]
[EventDate "2019.07.10"]
[EventType "swiss"]
[EventCountry "RUS"]
[SourceTitle "playchess.com"]
[Source "ChessBase"]
[SourceQuality "1"]
[TimeControl "5400+30"]

1. e4 {[%emt 0:01:48]} e5 {[%emt 0:00:00]} 2. Nf3 {[%emt 0:00:13]} Nf6 {[%emt 0:00:00]} 3. Nxe5 {[%emt 0:00:12]} d6 {[%emt 0:00:04]} 4. Nf3 {[%emt 0:00:07]} Nxe4 {[%emt 0:00:11]} 5. d4 {[%emt 0:00:06]} d5 {[%emt 0:00:17]} 6. Bd3 {[%emt 0:00:08]} Bd6 {[%emt 0:00:17]} 7. O-O {[%emt 0:00:13]} O-O {[%emt 0:00:08]} 8. c4 {[%emt 0:00:04]} c6 {[%emt 0:00:11]} 9. Nc3 {[%emt 0:00:08]} Nxc3 {[%emt 0:00:46]} 10. bxc3 {[%emt 0:00:13]} Bg4 {[%emt 0:00:29]} 11. h3 {[%emt 0:07:18]} Bh5 {[%emt 0:01:52]} 12. Re1 {[%emt 0:10:59]} dxc4 {[%emt 0:08:12]} 13. Bxc4 {[%emt 0:00:11]} Nd7 {[%emt 0:00:18]} 14. a4 {[%emt 0:03:37]} Qc7 {[%emt 0:04:54]} 15. g4 {[%emt 0:05:57]} Bg6 {[%emt 0:01:55]} 16. Nh4 {[%emt 0:01:04]} c5 {[%emt 0:12:38]} 17. Nxg6 {[%emt 0:06:31]} hxg6 {[%emt 0:00:06]} 18. Ba2 {[%emt 0:03:05]} Nf6 {[%emt 0:11:54]} 19. Qf3 {[%emt 0:06:59]} cxd4 {[%emt 0:07:26]} 20. cxd4 {[%emt 0:00:16]} Rfe8 {[%emt 0:01:00]} 21. Be3 {[%emt 0:05:58]} Re7 {[%emt 0:06:05]} 22. Rec1 {[%emt 0:11:48]} Qa5 {[%emt 0:03:06]} 23. Rab1 {[%emt 0:05:27]} Rb8 {[%emt 0:14:25]} 24. Bb3 {[%emt 0:02:36]} Rbe8 {[%emt 0:01:57]} 25. Rc2 {[%emt 0:03:58]} Ne4 {[%emt 0:02:45]} 26. Rbc1 {[%emt 0:00:59]} Ng5 {[%emt 0:04:44]} 27. Bxg5 {[%emt 0:02:13]} Qxg5 {[%emt 0:00:02]} 28. Rc8 {[%emt 0:00:45]} Qf4 {[%emt 0:00:59]} 29. Qxf4 {[%emt 0:03:58]} Bxf4 {[%emt 0:00:02]} 30. R1c3 {[%emt 0:04:20]} Kf8 {[%emt 0:01:05]} 31. Kg2 {[%emt 0:02:54]} Rd7 {[%emt 0:01:45]} 32. Rxe8+ {[%emt 0:01:47]} Kxe8 {[%emt 0:00:02]} 33. Rc4 {[%emt 0:00:34]} Rc7 {[%emt 0:01:25]} 34. Rxc7 {[%emt 0:00:21]} Bxc7 {[%emt 0:00:02]} 35. Kf3 {[%emt 0:00:10]} Ke7 {[%emt 0:01:12]} 36. Ke4 {[%emt 0:00:11]} a6 {[%emt 0:00:17]} 37. Bd5 {[%emt 0:02:02]} b5 {[%emt 0:00:10]} 38. axb5 {[%emt 0:00:09]} axb5 {[%emt 0:00:04]} 39. Bc6 {[%emt 0:00:10]} b4 {[%emt 0:00:04]} 40. Bd5 {[%emt 0:00:00]} f6 {[%emt 0:00:00]} 41. Bb3 1/2-1/2

[Event "Polugaevsky Memorial 2019"]
[Site "Samara"]
[Date "2019.07.12"]
[Round "3.7"]
[White "Gusarov, Aleksey"]
[Black "Tunik, Gennady"]
[Result "1/2-1/2"]
[ECO "B22"]
[WhiteElo "2258"]
[BlackElo "2371"]
[Annotator "ChessBase"]
[PlyCount "83"]
[EventDate "2019.07.10"]
[EventType "swiss"]
[EventCountry "RUS"]
[SourceTitle "playchess.com"]
[Source "ChessBase"]
[SourceQuality "1"]
[TimeControl "5400+30"]

1. e4 {[%emt 0:00:00]} c5 {[%emt 0:00:00]} 2. c3 {[%emt 0:00:00]} Nf6 {[%emt 0:00:11]} 3. e5 {[%emt 0:00:00]} Nd5 {[%emt 0:00:17]} 4. d4 {[%emt 0:00:00]} cxd4 {[%emt 0:00:19]} 5. cxd4 {[%emt 0:00:04]} d6 {[%emt 0:00:48]} 6. Nf3 {[%emt 0:00:25]} Nc6 {[%emt 0:02:44]} 7. Bc4 {[%emt 0:11:05]} Nb6 {[%emt 0:02:05]} 8. Bxf7+ {[%emt 0:17:59]} Kxf7 {[%emt 0:00:20]} 9. Ng5+ {[%emt 0:00:16]} Kg8 {[%emt 0:05:41]} 10. e6 {[%emt 0:00:53]} Qe8 {[%emt 0:05:38]} 11. d5 {[%emt 0:03:19]} h6 {[%emt 0:14:56]} 12. Nf7 {[%emt 0:04:03]} Nxd5 {[%emt 0:02:30]} 13. Qxd5 {[%emt 0:12:43]} Bxe6 {[%emt 0:00:47]} 14. Qxe6 {[%emt 0:00:15]} Qxf7 {[%emt 0:00:05]} 15. Qe3 {[%emt 0:07:49]} e6 {[%emt 0:03:45]} 16. O-O {[%emt 0:00:28]} d5 {[%emt 0:00:13]} 17. Re1 {[%emt 0:08:50]} Re8 {[%emt 0:00:24]} 18. Qg3 {[%emt 0:02:16]} Kh7 {[%emt 0:02:54]} 19. Nc3 {[%emt 0:02:53]} Bc5 {[%emt 0:01:01]} 20. Be3 {[%emt 0:02:19]} Bxe3 {[%emt 0:01:58]} 21. fxe3 {[%emt 0:01:17]} Qg6 {[%emt 0:01:20]} 22. Qd6 {[%emt 0:01:15]} Rd8 {[%emt 0:01:03]} 23. Qc7 {[%emt 0:00:58]} Rb8 {[%emt 0:09:45]} 24. Rf1 {[%emt 0:03:47]} Rhc8 {[%emt 0:01:13]} 25. Qd6 {[%emt 0:00:53]} Na5 {[%emt 0:00:58]} 26. Rf3 {[%emt 0:04:34]} Nc4 {[%emt 0:00:28]} 27. Qe7 {[%emt 0:01:27]} Re8 {[%emt 0:02:19]} 28. Qc7 {[%emt 0:02:11]} Rec8 {[%emt 0:04:08]} 29. Qe7 {[%emt 0:01:09]} Ne5 {[%emt 0:01:04]} 30. Rf4 {[%emt 0:06:04]} Qe8 {[%emt 0:01:17]} 31. Qa3 {[%emt 0:02:41]} Nc4 {[%emt 0:05:36]} 32. Qxa7 {[%emt 0:00:11]} Nxb2 {[%emt 0:00:16]} 33. Ne2 {[%emt 0:02:34]} Nd3 {[%emt 0:00:35]} 34. Rg4 {[%emt 0:00:52]} Ne5 {[%emt 0:02:05]} 35. Rg3 {[%emt 0:00:16]} Nc6 {[%emt 0:04:37]} 36. Qb6 {[%emt 0:00:18]} Qd8 {[%emt 0:02:50]} 37. Qb1+ {[%emt 0:00:11]} Kh8 {[%emt 0:00:12]} 38. Nf4 {[%emt 0:00:17]} Qd7 {[%emt 0:01:29]} 39. Qg6 {[%emt 0:01:30]} Re8 {[%emt 0:01:00]} 40. Rf1 {[%emt 0:00:00]} Re7 {[%emt 0:00:00]} 41. Qg4 {[%emt 0:00:00]} Rf7 {[%emt 0:00:00]} 42. Qxe6 {[%emt 0:00:00]} 1/2-1/2

[Event "Polugaevsky Memorial 2019"]
[Site "Samara"]
[Date "2019.07.12"]
[Round "3.8"]
[White "Lysenko, Margarita"]
[Black "Mukhutdinov, Tigran"]
[Result "1/2-1/2"]
[ECO "D74"]
[WhiteElo "2224"]
[BlackElo "2328"]
[Annotator "NA"]
[PlyCount "65"]
[EventDate "2019.07.10"]
[EventType "swiss"]
[EventCountry "RUS"]
[SourceTitle "playchess.com"]
[Source "ChessBase"]
[SourceQuality "1"]
[TimeControl "5400+30"]

1. d4 {[%emt 0:00:00]} Nf6 {[%emt 0:00:00]} 2. c4 {[%emt 0:00:42]} g6 {[%emt 0:00:00]} 3. Nf3 {[%emt 0:00:31]} Bg7 {[%emt 0:00:00]} 4. g3 {[%emt 0:00:21]} O-O {[%emt 0:00:05]} 5. Bg2 {[%emt 0:00:19]} d5 {[%emt 0:00:16]} 6. cxd5 {[%emt 0:01:00]} Nxd5 {[%emt 0:00:23]} 7. O-O {[%emt 0:00:09]} Nc6 {[%emt 0:00:36]} 8. Nc3 {[%emt 0:04:29]} e5 {[%emt 0:01:26]} 9. Bg5 {[%emt 0:17:02]} f6 {[%emt 0:23:25]} 10. Bc1 {[%emt 0:26:18]} Be6 {[%emt 0:15:24]} 11. dxe5 {[%emt 0:15:05]} Nxc3 {[%emt 0:02:41]} 12. bxc3 {[%emt 0:00:08]} Qxd1 {[%emt 0:03:35]} 13. Rxd1 {[%emt 0:00:35]} fxe5 {[%emt 0:00:14]} 14. Ng5 {[%emt 0:04:24]} Bc4 {[%emt 0:00:18]} 15. Bd5+ {[%emt 0:06:06]} Bxd5 {[%emt 0:00:15]} 16. Rxd5 {[%emt 0:00:04]} Rfd8 {[%emt 0:02:00]} 17. e4 {[%emt 0:01:39]} Ne7 {[%emt 0:04:05]} 18. Rxd8+ {[%emt 0:03:00]} Rxd8 {[%emt 0:00:05]} 19. Be3 {[%emt 0:06:08]} b6 {[%emt 0:02:04]} 20. Ne6 {[%emt 0:03:01]} Rd7 {[%emt 0:00:52]} 21. Kf1 {[%emt 0:00:27]} Bf6 {[%emt 0:02:53]} 22. Ke2 {[%emt 0:01:31]} Kf7 {[%emt 0:03:05]} 23. Ng5+ {[%emt 0:00:13]} Bxg5 {[%emt 0:00:03]} 24. Bxg5 {[%emt 0:00:09]} Nc8 {[%emt 0:01:13]} 25. f3 {[%emt 0:02:04]} Ke6 {[%emt 0:00:43]} 26. h4 {[%emt 0:01:19]} h5 {[%emt 0:01:57]} 27. Rd1 {[%emt 0:02:44]} Nd6 {[%emt 0:00:35]} 28. Bc1 {[%emt 0:00:25]} Rf7 {[%emt 0:08:10]} 29. Ba3 {[%emt 0:00:37]} Nc4 {[%emt 0:00:59]} 30. Bc1 {[%emt 0:00:20]} Nd6 {[%emt 0:03:21]} 31. Ba3 {[%emt 0:02:15]} Nc4 {[%emt 0:04:31]} 32. Bc1 {[%emt 0:00:19]} Nd6 {[%emt 0:01:08]} 33. Ba3 1/2-1/2

[Event "Polugaevsky Memorial 2019"]
[Site "Samara"]
[Date "2019.07.12"]
[Round "3.9"]
[White "Zhigalko, Andrey"]
[Black "Aukhatov, Roman"]
[Result "1/2-1/2"]
[ECO "B29"]
[WhiteElo "2549"]
[BlackElo "2119"]
[Annotator "ChessBase"]
[PlyCount "81"]
[EventDate "2019.07.10"]
[EventType "swiss"]
[EventCountry "RUS"]
[SourceTitle "playchess.com"]
[Source "ChessBase"]
[SourceQuality "1"]
[TimeControl "5400+30"]

1. e4 {[%emt 0:00:00]} c5 {[%emt 0:00:00]} 2. Nf3 {[%emt 0:00:00]} Nf6 {[%emt 0:00:00]} 3. e5 {[%emt 0:01:21]} Nd5 {[%emt 0:00:00]} 4. Nc3 {[%emt 0:00:52]} e6 {[%emt 0:00:04]} 5. Nxd5 {[%emt 0:01:11]} exd5 {[%emt 0:00:07]} 6. d4 {[%emt 0:00:08]} Nc6 {[%emt 0:00:09]} 7. c3 {[%emt 0:00:39]} cxd4 {[%emt 0:00:52]} 8. Nxd4 {[%emt 0:00:19]} d6 {[%emt 0:00:50]} 9. Bb5 {[%emt 0:02:11]} Bd7 {[%emt 0:00:15]} 10. exd6 {[%emt 0:02:26]} Bxd6 {[%emt 0:00:08]} 11. O-O {[%emt 0:07:53]} O-O {[%emt 0:00:12]} 12. Nf3 {[%emt 0:04:46]} Bg4 {[%emt 0:09:41]} 13. h3 {[%emt 0:00:54]} Bh5 {[%emt 0:01:59]} 14. Be2 {[%emt 0:02:30]} Bc5 {[%emt 0:06:15]} 15. Bg5 {[%emt 0:01:41]} Qd6 {[%emt 0:01:43]} 16. Qd2 {[%emt 0:40:35]} Bxf3 {[%emt 0:25:30]} 17. Bxf3 {[%emt 0:00:17]} d4 {[%emt 0:00:09]} 18. Rad1 {[%emt 0:05:24]} Qg6 {[%emt 0:01:12]} 19. cxd4 {[%emt 0:04:32]} Nxd4 {[%emt 0:01:26]} 20. Bxb7 {[%emt 0:01:41]} Rab8 {[%emt 0:00:33]} 21. Bd5 {[%emt 0:08:10]} Qd6 {[%emt 0:02:17]} 22. Be4 {[%emt 0:01:29]} f5 {[%emt 0:01:14]} 23. Be3 {[%emt 0:08:11]} fxe4 {[%emt 0:00:17]} 24. Bxd4 {[%emt 0:00:09]} Rfd8 {[%emt 0:02:25]} 25. Be3 {[%emt 0:01:13]} Qxd2 {[%emt 0:00:07]} 26. Bxd2 {[%emt 0:00:51]} Rxb2 {[%emt 0:00:18]} 27. Be3 {[%emt 0:00:09]} Rxd1 {[%emt 0:00:25]} 28. Rxd1 {[%emt 0:00:05]} Bxe3 {[%emt 0:01:08]} 29. fxe3 {[%emt 0:00:03]} Rxa2 {[%emt 0:00:20]} 30. Rd4 {[%emt 0:00:08]} Kf7 {[%emt 0:00:38]} 31. Rxe4 {[%emt 0:00:09]} Re2 {[%emt 0:00:23]} 32. Ra4 {[%emt 0:00:14]} Rxe3 {[%emt 0:00:07]} 33. Rxa7+ {[%emt 0:00:03]} Kf6 {[%emt 0:00:09]} 34. Kf2 {[%emt 0:00:06]} Re6 {[%emt 0:00:07]} 35. Kf3 {[%emt 0:00:17]} Rb6 {[%emt 0:00:11]} 36. Ra3 {[%emt 0:00:13]} h5 {[%emt 0:00:14]} 37. Re3 {[%emt 0:00:37]} g6 {[%emt 0:00:14]} 38. g3 {[%emt 0:00:40]} Ra6 {[%emt 0:00:06]} 39. Rb3 {[%emt 0:00:14]} Rc6 {[%emt 0:00:06]} 40. Ra3 {[%emt 0:00:00]} Rb6 {[%emt 0:00:00]} 41. Ke4 {Ke5+} 1/2-1/2